fUST/lending_fUST_20240826
["ID","MTS","AMOUNT","RATE_DAILY","PERIOD"]
[335958668,1724643046333,-500.0,0.00012381,2]
[335958669,1724643046344,-500.0,0.00012381,2]
[335958670,1724643046355,-594.33799973,0.00012381,2]
[335958671,1724643046364,-500.0,0.00012381,2]
[335958672,1724643046374,-513.7185685,0.00012381,2]
[335958673,1724643046386,-509.61189957,0.00012381,2]
[335958674,1724643046395,-1136.37,0.00012381,2]
[335958675,1724643046405,-500.0,0.00012381,2]
[335958676,1724643046415,-500.0,0.00012381,2]
[335958677,1724643046425,-515.6513176,0.00012381,2]
[335958678,1724643046434,-500.0,0.00012381,2]
[335958679,1724643046443,-707.91,0.00012381,2]
[335958680,1724643046453,-500.0,0.00012381,2]
[335958681,1724643046462,-1365.36,0.00012381,2]
[335958682,1724643046472,-500.0,0.00012381,2]
[335958683,1724643046482,-500.0,0.00012381,2]
[335958684,1724643046491,-500.0,0.00012381,2]
[335958685,1724643046501,-500.0,0.00012381,2]
[335958686,1724643046511,-587.31,0.00012381,2]
[335958687,1724643046521,-1111.92,0.00012381,2]
[335958688,1724643046530,-500.0,0.00012381,2]
[335958689,1724643046540,-333.43068512,0.00012381,2]
[335958690,1724643046550,-500.0,0.00012381,2]
[335958691,1724643046563,-214.63893041,0.00012381,2]
[335958692,1724643046573,-500.0,0.00012381,2]
[335958693,1724643046583,-1267.99,0.00012381,2]
[335958694,1724643046594,-687.18,0.00012381,2]
[335958695,1724643046606,-500.0,0.00012381,2]
[335958696,1724643046617,-500.0,0.00012381,2]
[335958697,1724643046627,-556.34709544,0.00012381,2]
[335958698,1724643046638,-608.89,0.00012381,2]
[335958699,1724643046648,-712.0,0.00012381,2]
[335958700,1724643046658,-500.0,0.00012381,2]
[335958701,1724643046668,-550.33,0.00012381,2]
[335958702,1724643046678,-591.91,0.00012381,2]
[335958703,1724643046689,-501.55,0.00012381,2]
[335958704,1724643046699,-338.3643911,0.00012381,2]
[335958705,1724643046709,-500.0,0.00012381,2]
[335958706,1724643046718,-500.0,0.00012381,2]
[335958707,1724643046729,-500.0,0.00012381,2]
[335958708,1724643046740,-503.83,0.00012381,2]
[335958709,1724643046750,-500.0,0.00012381,2]
[335958710,1724643046761,-500.0,0.00012381,2]
[335958711,1724643046771,-1851.29332,0.00012381,2]
[335958712,1724643046780,-1851.29332,0.00012381,2]
[335958713,1724643046789,-638.65,0.00012381,2]
[335958714,1724643046799,-500.0,0.00012381,2]
[335958715,1724643046808,-620.4,0.00012381,2]
[335958716,1724643046830,-500.0,0.00012381,2]
[335958717,1724643046840,-500.0,0.00012381,2]
[335958718,1724643046853,-500.0,0.00012381,2]
[335958719,1724643046865,-609.85291189,0.00012381,2]
[335958720,1724643046875,-181.57135356,0.00012381,2]
[335958721,1724643046885,-500.0,0.00012381,2]
[335958722,1724643046896,-500.0,0.00012381,2]
[335958723,1724643046906,-521.38,0.00012381,2]
[335958724,1724643046916,-546.67,0.00012381,2]
[335958725,1724643046926,-1060.620156,0.00012381,2]
[335958726,1724643046937,-1060.620156,0.00012381,2]
[335958727,1724643046947,-429.47140615,0.00012381,2]
[335958728,1724643046957,-500.0,0.00012381,2]
[335958729,1724643046967,-500.0,0.00012381,2]
[335958730,1724643046978,-500.0,0.00012381,2]
[335958731,1724643046988,-500.0,0.00012381,2]
[335958732,1724643046999,-500.0,0.00012381,2]
[335958733,1724643047010,-500.0,0.00012381,2]
[335958734,1724643047022,-500.0,0.00012381,2]
[335958735,1724643047035,-500.0,0.00012381,2]
[335958736,1724643047047,-553.63673576,0.00012381,2]
[335958737,1724643047057,-544.56,0.00012381,2]
[335958738,1724643047074,-500.0,0.00012381,2]
[335958739,1724643047083,-500.0,0.00012381,2]
[335958740,1724643047094,-500.0,0.00012381,2]
[335958741,1724643047104,-500.0,0.00012381,2]
[335958742,1724643047113,-538.24702387,0.00012381,2]
[335958743,1724643047123,-578.47664796,0.00012381,2]
[335958744,1724643047133,-500.0,0.00012381,2]
[335958745,1724643047143,-500.0,0.00012381,2]
[335958746,1724643047153,-500.0,0.00012381,2]
[335958747,1724643047163,-500.0,0.00012381,2]
[335958748,1724643047172,-500.0,0.00012381,2]
[335958749,1724643047182,-751.39,0.00012381,2]
[335958750,1724643047193,-500.0,0.00012381,2]
[335958751,1724643047203,-500.0,0.00012381,2]
[335958752,1724643047212,-442.40203144,0.00012381,2]
[335958753,1724643047222,-509.44,0.00012381,2]
[335958754,1724643047231,-500.0,0.00012381,2]
[335958755,1724643047242,-500.0,0.00012381,2]
[335958756,1724643047252,-500.0,0.00012381,2]
[335958757,1724643047262,-500.0,0.00012381,2]
[335958758,1724643047272,-658.78,0.00012381,2]
[335958759,1724643047282,-500.0,0.00012381,2]
[335958760,1724643047292,-500.0,0.00012381,2]
[335958761,1724643047302,-500.0,0.00012381,2]
[335958762,1724643047316,-500.0,0.00012381,2]
[335958763,1724643047326,-500.0,0.00012381,2]
[335958764,1724643047336,-500.0,0.00012381,2]
[335958765,1724643047347,-500.0,0.00012381,2]
[335958766,1724643047358,-523.12602521,0.00012381,2]
[335958767,1724643047368,-528.42,0.00012381,2]
[335958768,1724643047379,-891.36,0.00012382,2]
[335958769,1724643047391,-648.56,0.00012382,2]
[335958770,1724643047401,-1098.49,0.00012382,2]
[335958771,1724643047411,-535.41,0.00012382,2]
[335958772,1724643047421,-779.3,0.00012382,2]
[335958773,1724643047431,-500.0,0.00012382,2]
[335958774,1724643047441,-500.0,0.00012382,2]
[335958775,1724643047452,-742.66,0.00012382,2]
[335958776,1724643047463,-500.0,0.00012382,2]
[335958777,1724643047473,-669.56,0.00012382,2]
[335958778,1724643047483,-500.0,0.00012382,2]
[335958779,1724643047492,-500.0,0.00012382,2]
[335958780,1724643047503,-720.35,0.00012382,2]
[335958781,1724643047514,-500.0,0.00012382,2]
[335958782,1724643047524,-536.45,0.00012382,2]
[335958783,1724643047535,-500.0,0.00012382,2]
[335958784,1724643047545,-500.0,0.00012382,2]
[335958785,1724643047555,-869.53,0.00012382,2]
[335958786,1724643047566,-500.0,0.00012382,2]
[335958787,1724643047576,-1146.52,0.00012382,2]
[335958788,1724643047586,-658.97,0.00012382,2]
[335958789,1724643047597,-500.0,0.00012382,2]
[335958790,1724643047608,-503.91446218,0.00012382,2]
[335958791,1724643047618,-538.19,0.00012382,2]
[335958792,1724643047628,-500.0,0.00012382,2]
[335958793,1724643047637,-1086.13,0.00012382,2]
[335958794,1724643047647,-500.0,0.00012382,2]
[335958795,1724643047657,-338.62963851,0.00012382,2]
[335958796,1724643047669,-1296.8,0.00012382,2]
[335958797,1724643047679,-1073.17,0.00012382,2]
[335958798,1724643047690,-500.0,0.00012382,2]
[335958799,1724643047702,-500.0,0.00012382,2]
[335958800,1724643047712,-950.45,0.00012382,2]
[335958801,1724643047722,-705.23,0.00012382,2]
[335958802,1724643047732,-526.97,0.00012382,2]
[335958803,1724643047742,-500.0,0.00012382,2]
[335958804,1724643047752,-1043.49,0.00012382,2]
[335958805,1724643047763,-500.0,0.00012382,2]
[335958806,1724643047773,-552.7,0.00012382,2]
[335958807,1724643047783,-1078.34,0.00012382,2]
[335958808,1724643047794,-844.21,0.00012382,2]
[335958809,1724643047804,-897.75,0.00012382,2]
[335958810,1724643047817,-500.0,0.00012382,2]
[335958811,1724643047828,-568.07,0.00012382,2]
[335958812,1724643047839,-500.0,0.00012382,2]
[335958813,1724643047850,-500.0,0.00012382,2]
[335958814,1724643047860,-500.0,0.00012382,2]
[335958815,1724643047870,-433.30456367,0.00012382,2]
[335958816,1724643047881,-500.0,0.00012382,2]
[335958817,1724643047892,-845.0,0.00012382,2]
[335958818,1724643047904,-1253.91,0.00012382,2]
[335958819,1724643047915,-642.79,0.00012382,2]
[335958820,1724643047927,-1093.67,0.00012382,2]
[335958821,1724643047940,-856.53,0.00012382,2]
[335958822,1724643047953,-1079.05,0.00012382,2]
[335958823,1724643047964,-527.03,0.00012382,2]
[335958824,1724643047975,-817.6,0.00012382,2]
[335958825,1724643047986,-729.71,0.00012382,2]
[335958826,1724643047996,-561.47,0.00012382,2]
[335958827,1724643048007,-571.31,0.00012382,2]
[335958828,1724643048018,-681.91,0.00012382,2]
[335958829,1724643048029,-837.31,0.00012382,2]
[335958830,1724643048042,-1082.59,0.00012382,2]
[335958831,1724643048057,-529.28,0.00012382,2]
[335958832,1724643048072,-500.0,0.00012392,2]
[335958833,1724643048086,-500.0,0.00012392,2]
[335958834,1724643048100,-818.3160819,0.000124,2]
[335958835,1724643048111,-409.311066,0.000124,2]
[335958836,1724643048122,-409.311066,0.000124,2]
[335958837,1724643048136,-409.311066,0.000124,2]
[335958838,1724643048150,-818.622132,0.000124,2]
[335958839,1724643048165,-409.311066,0.000124,2]
[335958840,1724643048178,-409.311066,0.000124,2]
[335958841,1724643048191,-409.311066,0.000124,2]
[335958842,1724643048203,-409.311066,0.000124,2]
[335958843,1724643048216,-817.436112,0.000124,2]
[335958844,1724643048229,-409.311066,0.000124,2]
[335958845,1724643048242,-409.311066,0.000124,2]
[335958846,1724643048254,-500.0,0.00012439,2]
[335958847,1724643048267,-543.13,0.00012439,2]
[335958848,1724643048281,-642.75,0.00012439,2]
[335958849,1724643048295,-500.0,0.00012439,2]
[335958850,1724643048310,-500.0,0.00012439,2]
[335958851,1724643048324,-500.0,0.00012439,2]
[335958852,1724643048335,-565.98,0.00012439,2]
[335958853,1724643048346,-500.0,0.00012439,2]
[335958854,1724643048357,-586.51,0.00012439,2]
[335958855,1724643048370,-500.0,0.00012439,2]
[335958856,1724643048383,-752.17,0.00012439,2]
[335958857,1724643048397,-500.0,0.00012439,2]
[335958858,1724643048411,-500.0,0.00012439,2]
[335958859,1724643048423,-500.0,0.00012439,2]
[335958860,1724643048437,-702.93,0.00012439,2]
[335958861,1724643048450,-679.72,0.00012439,2]
[335958862,1724643048463,-828.87,0.00012439,2]
[335958863,1724643048475,-1146.09,0.00012439,2]
[335958864,1724643048486,-500.0,0.00012439,2]
[335958865,1724643048496,-500.0,0.00012439,2]
[335958866,1724643048507,-641.37,0.00012439,2]
[335958867,1724643048519,-500.0,0.00012439,2]
[335958868,1724643048532,-500.0,0.00012439,2]
[335958869,1724643048545,-568.59,0.00012439,2]
[335958870,1724643048556,-500.0,0.00012439,2]
[335958871,1724643048568,-500.0,0.00012439,2]
[335958872,1724643048582,-794.77,0.00012439,2]
[335958873,1724643048594,-1272.01,0.00012439,2]
[335958874,1724643048607,-500.0,0.00012439,2]
[335958875,1724643048619,-500.0,0.00012439,2]
[335958876,1724643048630,-500.0,0.00012439,2]
[335958877,1724643048640,-655.11,0.00012439,2]
[335958878,1724643048651,-618.5,0.00012439,2]
[335958879,1724643048662,-500.0,0.00012439,2]
[335958880,1724643048674,-889.44,0.00012439,2]
[335958881,1724643048686,-657.61,0.00012439,2]
[335958882,1724643048699,-772.14,0.00012439,2]
[335958883,1724643048711,-688.32,0.00012439,2]
[335958884,1724643048722,-500.0,0.00012439,2]
[335958885,1724643048733,-500.0,0.00012439,2]
[335958886,1724643048746,-500.0,0.00012439,2]
[335958887,1724643048759,-500.0,0.00012439,2]
[335958888,1724643048770,-500.0,0.00012439,2]
[335958889,1724643048782,-500.0,0.00012439,2]
[335958890,1724643048793,-500.0,0.00012439,2]
[335958891,1724643048804,-1851.29332,0.00012439,2]
[335958892,1724643048815,-1851.29332,0.00012439,2]
[335958893,1724643048827,-1060.620156,0.00012439,2]
[335958894,1724643048838,-1060.620156,0.00012439,2]
[335958895,1724643048850,-408.915726,0.000125,2]
[335958896,1724643048861,-190.80297655,0.000125,2]
[335958897,1724643048872,-3094.87417801,0.00012516,2]
[335958898,1724643048883,-780.60811079,0.00012516,2]
[335958899,1724643048895,-310.51011385,0.00012516,2]
[335958900,1724643048906,-154.74467129,0.00012516,2]
[335958901,1724643048919,-174.85021076,0.00012629,2]
[335958902,1724643048930,-882.92,0.00012643,2]
[335958903,1724643048941,-8144.62,0.00012643,2]
[335958904,1724643048953,-500.0,0.00012643,2]
[335958905,1724643048965,-500.0,0.00012643,2]
[335958906,1724643048977,-708.94,0.00012643,2]
[335958907,1724643048988,-935.73,0.00012643,2]
[335958908,1724643048999,-11329.8,0.00012643,2]
[335958909,1724643049010,-566.79,0.00012643,2]
[335958910,1724643049020,-620.38,0.00012643,2]
[335958911,1724643049032,-614.08,0.00012643,2]
[335958912,1724643049047,-500.0,0.00012643,2]
[335958913,1724643049059,-610.76,0.00012643,2]
[335958914,1724643049070,-715.19,0.00012643,2]
[335958915,1724643049081,-3084.28,0.00012643,2]
[335958916,1724643049093,-12568.85,0.00012644,2]
[335958917,1724643049104,-500.0,0.00012644,2]
[335958918,1724643049115,-3333.57,0.00012644,2]
[335958919,1724643049126,-585.87,0.00012644,2]
[335958920,1724643049137,-959.92,0.00012644,2]
[335958921,1724643049148,-4147.97,0.00012644,2]
[335958922,1724643049159,-500.0,0.00012644,2]
[335958923,1724643049170,-1458.87,0.00012644,2]
[335958924,1724643049181,-3113.83,0.00012644,2]
[335958925,1724643049193,-500.0,0.00012644,2]
[335958926,1724643049205,-500.0,0.00012644,2]
[335958927,1724643049216,-500.0,0.00012644,2]
[335958928,1724643049228,-639.78,0.00012644,2]
[335958929,1724643049239,-33463.22,0.00012644,2]
[335958930,1724643049251,-716.31,0.00012644,2]
[335958931,1724643049263,-824.65,0.00012644,2]
[335958932,1724643049274,-505.67,0.00012644,2]
[335958933,1724643049286,-1864.62,0.00012644,2]
[335958934,1724643049297,-572.94,0.00012644,2]
[335958935,1724643049311,-806.09,0.00012644,2]
[335958936,1724643049323,-501.38,0.00012644,2]
[335958937,1724643049336,-1383.81,0.00012644,2]
[335958938,1724643049348,-500.0,0.00012644,2]
[335958939,1724643049361,-528.11,0.00012644,2]
[335958940,1724643049373,-500.0,0.00012644,2]
[335958941,1724643049385,-1521.34,0.00012644,2]
[335958942,1724643049398,-500.0,0.00012644,2]
[335958943,1724643049409,-500.0,0.00012644,2]
[335958944,1724643049420,-500.0,0.00012644,2]
[335958945,1724643049431,-862.59,0.00012644,2]
[335958946,1724643049442,-2687.73,0.00012644,2]
[335958947,1724643049454,-500.0,0.00012644,2]
[335958948,1724643049467,-500.0,0.00012644,2]
[335958949,1724643049479,-971.72,0.00012644,2]
[335958950,1724643049490,-821.96,0.00012644,2]
[335958951,1724643049501,-686.1,0.00012644,2]
[335958952,1724643049513,-696.22,0.00012644,2]
[335958953,1724643049526,-1225.05,0.00012644,2]
[335958954,1724643049538,-966.21,0.00012644,2]
[335958955,1724643049551,-500.0,0.00012644,2]
[335958956,1724643049562,-932.37,0.00012645,2]
[335958957,1724643049574,-500.0,0.00012645,2]
[335958958,1724643049585,-500.0,0.00012645,2]
[335958959,1724643049596,-670.27,0.00012645,2]
[335958960,1724643049608,-500.84,0.00012645,2]
[335958961,1724643049619,-500.0,0.00012645,2]
[335958962,1724643049630,-500.0,0.00012645,2]
[335958963,1724643049642,-500.0,0.00012645,2]
[335958964,1724643049654,-500.0,0.00012645,2]
[335958965,1724643049665,-964.89,0.00012645,2]
[335958966,1724643049676,-1045.08,0.00012645,2]
[335958967,1724643049688,-587.84,0.00012645,2]
[335958968,1724643049699,-500.0,0.00012645,2]
[335958969,1724643049710,-854.3,0.00012645,2]
[335958970,1724643049722,-741.68,0.00012645,2]
[335958971,1724643049733,-857.95,0.00012645,2]
[335958972,1724643049744,-978.77,0.00012645,2]
[335958973,1724643049757,-791.04,0.00012645,2]
[335958974,1724643049768,-500.0,0.00012645,2]
[335958975,1724643049779,-586.6,0.00012645,2]
[335958976,1724643049790,-1204.03,0.00012645,2]
[335958977,1724643049803,-653.55,0.00012645,2]
[335958978,1724643049818,-659.93,0.00012645,2]
[335958979,1724643049830,-500.0,0.00012645,2]
[335958980,1724643049841,-1131.85,0.00012645,2]
[335958981,1724643049853,-505.84,0.00012645,2]
[335958982,1724643049864,-588.29,0.00012645,2]
[335958983,1724643049876,-500.0,0.00012645,2]
[335958984,1724643049887,-500.0,0.00012645,2]
[335958985,1724643049898,-532.62,0.00012645,2]
[335958986,1724643049909,-500.0,0.00012645,2]
[335958987,1724643049921,-500.0,0.00012645,2]
[335958988,1724643049932,-1851.29332,0.00012645,2]
[335958989,1724643049943,-500.0,0.00012645,2]
[335958990,1724643049954,-1851.29332,0.00012645,2]
[335958991,1724643049964,-720.09,0.00012645,2]
[335958992,1724643049976,-1014.91,0.00012645,2]
[335958993,1724643049987,-500.0,0.00012645,2]
[335958994,1724643049998,-606.59,0.00012645,2]
[335958995,1724643050010,-942.62,0.00012645,2]
[335958996,1724643050022,-683.27,0.00012645,2]
[335958997,1724643050033,-500.0,0.00012645,2]
[335958998,1724643050043,-1060.620156,0.00012645,2]
[335958999,1724643050054,-1060.620156,0.00012645,2]
[335959000,1724643050068,-4144.64,0.00012645,2]
[335959001,1724643050085,-537.33,0.00012645,2]
[335959002,1724643050095,-870.93,0.00012645,2]
[335959003,1724643050106,-767.64,0.00012645,2]
[335959004,1724643050116,-802.98,0.00012645,2]
[335959005,1724643050127,-876.58,0.00012645,2]
[335959006,1724643050137,-607.57,0.00012645,2]
[335959007,1724643050148,-625.73,0.00012645,2]
[335959008,1724643050158,-500.0,0.00012645,2]
[335959009,1724643050168,-500.0,0.00012645,2]
[335959010,1724643050180,-873.32,0.00012645,2]
[335959011,1724643050191,-881.82,0.00012645,2]
[335959012,1724643050201,-767.4,0.00012645,2]
[335959013,1724643050212,-1265.33,0.00012645,2]
[335959014,1724643050224,-500.0,0.00012645,2]
[335959015,1724643050234,-500.0,0.00012645,2]
[335959016,1724643050244,-1042.11,0.00012645,2]
[335959017,1724643050255,-629.36,0.00012645,2]
[335959018,1724643050266,-500.0,0.00012645,2]
[335959019,1724643050276,-1279.92,0.00012645,2]
[335959020,1724643050288,-703.09,0.00012645,2]
[335959021,1724643050301,-500.0,0.00012645,2]
[335959022,1724643050314,-841.58,0.00012645,2]
[335959023,1724643050325,-2490.23,0.00012645,2]
[335959024,1724643050335,-515.88,0.00012645,2]
[335959025,1724643050348,-5828.93,0.00012645,2]
[335959026,1724643050359,-713.76,0.00012645,2]
[335959027,1724643050369,-11005.18,0.00012645,2]
[335959028,1724643050379,-649.61,0.00012645,2]
[335959029,1724643050391,-781.68,0.00012645,2]
[335959030,1724643050401,-500.0,0.00012645,2]
[335959031,1724643050412,-752.28,0.00012645,2]
[335959032,1724643050422,-500.0,0.00012645,2]
[335959033,1724643050433,-535.88,0.00012645,2]
[335959034,1724643050444,-514.78,0.00012645,2]
[335959035,1724643050456,-500.0,0.00012645,2]
[335959036,1724643050752,-500.0,0.00012645,2]
[335959037,1724643050784,-500.0,0.00012645,2]
[335959038,1724643050799,-1182.14,0.00012645,2]
[335959039,1724643050808,-621.15,0.00012645,2]
[335959040,1724643050820,-608.41,0.00012645,2]
[335959041,1724643050829,-500.0,0.00012645,2]
[335959042,1724643050838,-864.4,0.00012645,2]
[335959043,1724643050848,-500.0,0.00012645,2]
[335959044,1724643050858,-500.0,0.00012645,2]
[335959045,1724643050867,-27875.82946941,0.00012655,5]
[335959046,1724643050877,-500.0,0.00012655,2]
[335959047,1724643050886,-576.55,0.00012655,2]
[335959048,1724643050895,-652.25,0.00012655,2]
[335959049,1724643050905,-500.0,0.00012655,2]
[335959050,1724643050914,-500.0,0.00012655,2]
[335959051,1724643050923,-500.0,0.00012655,2]
[335959052,1724643050933,-500.0,0.00012655,2]
[335959053,1724643050942,-500.0,0.00012655,2]
[335959054,1724643050951,-522.75,0.00012655,2]
[335959055,1724643050961,-500.0,0.00012655,2]
[335959056,1724643050970,-500.0,0.00012655,2]
[335959057,1724643050980,-566.77,0.00012655,2]
[335959058,1724643050990,-500.0,0.00012655,2]
[335959059,1724643050999,-500.0,0.00012655,2]
[335959060,1724643051009,-500.0,0.00012655,2]
[335959061,1724643051017,-500.0,0.00012655,2]
[335959062,1724643051027,-500.0,0.00012655,2]
[335959063,1724643051036,-500.0,0.00012655,2]
[335959064,1724643051045,-500.0,0.00012655,2]
[335959065,1724643051056,-500.0,0.00012655,2]
[335959066,1724643051068,-500.0,0.00012655,2]
[335959067,1724643051077,-500.0,0.00012655,2]
[335959068,1724643051086,-500.0,0.00012655,2]
[335959069,1724643051097,-660.44,0.00012655,2]
[335959070,1724643051110,-617.38,0.00012655,2]
[335959071,1724643051121,-637.71,0.00012655,2]
[335959072,1724643051133,-500.0,0.00012655,2]
[335959073,1724643051143,-500.0,0.00012655,2]
[335959074,1724643051155,-500.0,0.00012655,2]
[335959075,1724643051166,-500.0,0.00012655,2]
[335959076,1724643051177,-500.0,0.00012655,2]
[335959077,1724643051189,-916.13,0.00012655,2]
[335959078,1724643051198,-500.0,0.00012655,2]
[335959079,1724643051209,-500.0,0.00012655,2]
[335959080,1724643051218,-500.0,0.00012655,2]
[335959081,1724643051227,-283.92382111,0.00012655,2]
[335959082,1724643051238,-500.0,0.00012655,2]
[335959083,1724643051248,-500.0,0.00012655,2]
[335959084,1724643051259,-500.0,0.00012655,2]
[335959085,1724643051270,-500.0,0.00012655,2]
[335959086,1724643051281,-500.0,0.00012655,2]
[335959087,1724643051292,-500.0,0.00012655,2]
[335959088,1724643051301,-500.0,0.00012655,2]
[335959089,1724643051314,-500.0,0.00012655,2]
[335959090,1724643051323,-500.0,0.00012655,2]
[335959091,1724643051333,-500.0,0.00012655,2]
[335959092,1724643051342,-500.0,0.00012655,2]
[335959093,1724643051352,-500.0,0.00012655,2]
[335959094,1724643051363,-500.0,0.00012655,2]
[335959095,1724643051373,-500.0,0.00012655,2]
[335959096,1724643051382,-500.0,0.00012655,2]
[335959097,1724643051392,-530.52,0.00012655,2]
[335959098,1724643051401,-500.0,0.00012655,2]
[335959099,1724643051412,-500.0,0.00012655,2]
[335959100,1724643051422,-605.79887429,0.00012655,2]
[335959101,1724643051432,-500.0,0.00012655,2]
[335959102,1724643051443,-500.0,0.00012655,2]
[335959103,1724643051454,-500.0,0.00012655,2]
[335959104,1724643051463,-500.0,0.00012655,2]
[335959105,1724643051473,-500.0,0.00012655,2]
[335959106,1724643051483,-1147.37,0.00012655,2]
[335959107,1724643051492,-500.0,0.00012655,2]
[335959108,1724643051501,-500.0,0.00012655,2]
[335959109,1724643051510,-500.0,0.00012655,2]
[335959110,1724643051519,-500.0,0.00012655,2]
[335959111,1724643051529,-1136.37,0.00012655,2]
[335959112,1724643051538,-500.0,0.00012655,2]
[335959113,1724643051547,-500.0,0.00012655,2]
[335959114,1724643051557,-500.0,0.00012655,2]
[335959115,1724643051566,-707.91,0.00012655,2]
[335959116,1724643051576,-500.0,0.00012655,2]
[335959117,1724643051585,-1365.36,0.00012655,2]
[335959118,1724643051594,-500.0,0.00012655,2]
[335959119,1724643051603,-500.0,0.00012655,2]
[335959120,1724643051613,-500.0,0.00012655,2]
[335959121,1724643051622,-169.57906181,0.00012655,2]
[335959122,1724643051631,-587.31,0.00012655,2]
[335959123,1724643051640,-1111.92,0.00012655,2]
[335959124,1724643051650,-500.0,0.00012655,2]
[335959125,1724643051660,-500.0,0.00012655,2]
[335959126,1724643051669,-500.0,0.00012655,2]
[335959127,1724643051679,-1267.99,0.00012655,2]
[335959128,1724643051688,-687.18,0.00012655,2]
[335959129,1724643051697,-500.0,0.00012655,2]
[335959130,1724643051707,-500.0,0.00012655,2]
[335959131,1724643051716,-608.89,0.00012655,2]
[335959132,1724643051726,-712.0,0.00012655,2]
[335959133,1724643051735,-500.0,0.00012655,2]
[335959134,1724643051744,-550.33,0.00012655,2]
[335959135,1724643051753,-591.91,0.00012655,2]
[335959136,1724643051762,-501.55,0.00012655,2]
[335959137,1724643051772,-500.0,0.00012655,2]
[335959138,1724643051781,-500.0,0.00012655,2]
[335959139,1724643051790,-500.0,0.00012655,2]
[335959140,1724643051799,-503.83,0.00012655,2]
[335959141,1724643051808,-500.0,0.00012655,2]
[335959142,1724643051818,-500.0,0.00012655,2]
[335959143,1724643051828,-638.65,0.00012655,2]
[335959144,1724643051837,-223.27307692,0.00012655,2]
[335959145,1724643051846,-620.4,0.00012655,2]
[335959146,1724643051856,-500.0,0.00012655,2]
[335959147,1724643051865,-500.0,0.00012655,2]
[335959148,1724643051874,-500.0,0.00012655,2]
[335959149,1724643051884,-500.0,0.00012655,2]
[335959150,1724643051893,-500.0,0.00012655,2]
[335959151,1724643051902,-521.38,0.00012655,2]
[335959152,1724643051911,-546.67,0.00012655,2]
[335959153,1724643051920,-500.0,0.00012655,2]
[335959154,1724643051929,-500.0,0.00012655,2]
[335959155,1724643051939,-500.0,0.00012655,2]
[335959156,1724643051949,-433.24407503,0.00012655,2]
[335959157,1724643051958,-500.0,0.00012655,2]
[335959158,1724643051967,-162.21700301,0.00012655,2]
[335959159,1724643051976,-500.0,0.00012655,2]
[335959160,1724643051986,-500.0,0.00012655,2]
[335959161,1724643051995,-544.56,0.00012655,2]
[335959162,1724643052004,-325.61953424,0.00012655,2]
[335959163,1724643052014,-500.0,0.00012655,2]
[335959164,1724643052023,-500.0,0.00012655,2]
[335959165,1724643052033,-500.0,0.00012655,2]
[335959166,1724643052042,-500.0,0.00012655,2]
[335959167,1724643052051,-500.0,0.00012655,2]